fUST/lending_fUST_20250311
["ID","MTS","AMOUNT","RATE_DAILY","PERIOD"]
[355824999,1741622403150,1240.91169839,0.0002501,2]
[355825005,1741622749170,-159.58505571,0.000259,2]
[355825006,1741622777185,3551.38455395,0.000174,2]
[355825009,1741622945130,-766.60440043,0.000259,2]
[355825010,1741622945152,-926.18945614,0.000309,2]
[355825011,1741622945174,-926.18945614,0.000359,2]
[355825012,1741622945197,-1230.83306289,0.000359,7]
[355825013,1741622945218,-199.0,0.00037079,2]
[355825014,1741622945240,-159.58505571,0.0003708,15]
[355825015,1741622945266,-500.0,0.0003708,2]
[355825016,1741622945292,-132.60711109,0.0003708,2]
[355825040,1741623032809,-367.39288891,0.0003708,2]
[355825042,1741623032819,-387.25965141,0.0003708,2]
[355825044,1741623032828,-502.14192474,0.00037081,2]
[355825093,1741623039633,-24397.85807526,0.00037081,2]
[355825094,1741623039643,-723.45896942,0.000398,119]
[355825095,1741623039652,-1813.28594613,0.0004,15]
[355825096,1741623039664,-160.0,0.00040616,2]
[355825097,1741623039673,-1813.28594613,0.000424,15]
[355825098,1741623039685,-8000.0,0.000425,3]
[355825099,1741623039695,-723.45896942,0.00042839,120]
[355825100,1741623039704,-20000.0,0.00042839,2]
[355825101,1741623039714,-1964.3931083,0.000448,19]
[355825102,1741623039726,-343.58509638,0.0004489,2]
[355825103,1741623039736,-1058.77897483,0.000449,2]
[355825104,1741623039747,-4537.28,0.0004497,10]
[355825105,1741623039757,-2333.43,0.0004497,30]
[355825106,1741623039767,-430.32767409,0.00044979,120]
[355825107,1741623039776,-325.37120207,0.00044979,31]
[355825108,1741623039786,-68690.0282824,0.0004498,3]
[355825109,1741623039796,-1000.0,0.00044989,2]
[355825110,1741623039806,-1000.0,0.00044989,2]
[355825111,1741623039817,-1000.0,0.00044989,2]
[355825112,1741623039827,-1000.0,0.00044989,2]
[355825113,1741623039838,-1000.0,0.00044989,2]
[355825114,1741623039849,-1000.0,0.00044989,2]
[355825115,1741623039859,-423.43563627,0.00044989,2]
[355825116,1741623039870,-15568.29314569,0.0004499,3]
[355825117,1741623039880,-103035.042424,0.0004499,3]
[355825118,1741623039890,-1000.0,0.00045,120]
[355825119,1741623039900,-110000.0,0.00045,3]
[355825120,1741623039910,-698.46,0.00045,30]
[355825121,1741623039919,-201.02,0.00045,30]
[355825122,1741623039929,-17135.34,0.00045,30]
[355825123,1741623039939,-501.91,0.00045,30]
[355825124,1741623039950,-1426.09,0.00045,30]
[355825125,1741623039960,-1016.32,0.00045,30]
[355825126,1741623039970,-647.55498178,0.00045367,10]
[355825127,1741623039982,-500.0,0.00045533,2]
[355825128,1741623039993,-500.0,0.00045825,7]
[355825129,1741623040004,-406.25546454,0.00045825,10]
[355825130,1741623040014,-385.69618198,0.00045825,10]
[355825131,1741623040024,-500.0,0.00045825,10]
[355825132,1741623040033,-500.0,0.00045825,10]
[355825133,1741623040043,-500.0,0.00045825,7]
[355825134,1741623040053,-500.0,0.00045825,2]
[355825135,1741623040063,-500.0,0.00045825,10]
[355825136,1741623040072,-500.0,0.00045825,2]
[355825148,1741623040213,-500.0,0.00045825,10]
[355825150,1741623040225,-500.0,0.00045825,10]
[355825152,1741623040236,-156.11189183,0.00045825,10]
[355825154,1741623040250,-151.85301825,0.00045825,10]
[355825156,1741623040260,-501.15957283,0.00045825,10]
[355825158,1741623040270,-500.0,0.00045825,10]
[355825160,1741623040280,-723.45896942,0.00045877,120]
[355825162,1741623040290,-343.58509638,0.00046068,2]
[355825163,1741623040300,-416.66666667,0.00046492,2]
[355825164,1741623040310,-34345.0141412,0.00046555,4]
[355825165,1741623040321,-4057.88,0.00046575,120]
[355825166,1741623040331,-3000.0,0.00046575,10]
[355825167,1741623040340,-15568.29314569,0.00046627,2]
[355825168,1741623040350,-34345.0141412,0.00046629,4]
[355825169,1741623040360,-350.53900052,0.000468,10]
[355825170,1741623040370,-200.0,0.00047,2]
[355825171,1741623040380,-1016.32,0.00047,30]
[355825172,1741623040390,-4057.88,0.00047123,120]
[355825174,1741623040401,-1426.09,0.000472,30]
[355825176,1741623040411,-2115.50027048,0.000472,23]
[355825178,1741623040423,-343.58509638,0.00047245,2]
[355825180,1741623040437,-698.46,0.000474,30]
[355825182,1741623040447,-201.02,0.000474,30]
[355825183,1741623040456,-17135.34,0.000474,30]
[355825184,1741623040466,-501.91,0.000474,30]
[355825185,1741623040477,-4057.88,0.00047671,120]
[355825186,1741623040487,-217.43,0.00047874,30]
[355825188,1741623040498,-178.75080625,0.00048,44]
[355825190,1741623040508,-151.0,0.00048,28]
[355825192,1741623040517,-151.0,0.00048,23]
[355825194,1741623040528,-151.0,0.00048,25]
[355825196,1741623040538,-151.0,0.00048,23]
[355825198,1741623040547,-151.0,0.00048,23]
[355825200,1741623040557,-151.0,0.00048,24]
[355825202,1741623040567,-151.0,0.00048,29]
[355825204,1741623040578,-151.0,0.00048,25]
[355825206,1741623040587,-151.0,0.00048,24]
[355825209,1741623040598,-4057.88,0.00048219,120]
[355825211,1741623040607,-151.0,0.000484,26]
[355825213,1741623040617,-1016.32,0.000484,30]
[355825215,1741623040628,-343.58509638,0.00048423,2]
[355825217,1741623040638,-1426.09,0.000485,30]
[355825219,1741623040648,-34345.0141412,0.00048539,4]
[355825221,1741623040660,-150.0,0.00048549,2]
[355825223,1741623040671,-4057.88,0.00048767,120]
[355825225,1741623040680,-1000.0,0.00048799,2]
[355825227,1741623040691,-1483368.86056491,0.00048799,2]
[355825230,1741623040709,-823.544997,0.00048799,2]
[355825232,1741623040721,-16015.27854567,0.00048799,2]
[355825234,1741623040733,-7529.21958677,0.00048799,2]
[355825237,1741623040750,-292814.73103793,0.00048799,2]
[355825248,1741623040851,-19216.94946739,0.00048799,2]
[355825250,1741623040863,-7529.73530414,0.00048799,2]
[355825373,1741623043710,-4600.0000005,0.0004497,30]
[355825374,1741623043777,-797.0,0.0004497,30]
[355825457,1741623046668,-644.4099995,0.0004497,30]
[355825458,1741623046678,-500.0,0.00045825,10]
[355825459,1741623046688,-4530.79,0.00048789,10]
[355825460,1741623046698,-79939.69802092,0.00048799,2]
[355825463,1741623279860,-1000.0,0.00026849,2]
[355825464,1741623279881,-804.18257973,0.0002801,2]
[355825465,1741623279902,-1840.37983293,0.000329,6]
[355825466,1741623279924,-206.405653,0.0003589,2]
[355825467,1741623279948,-509.90851309,0.00036978,102]
[355825468,1741623279970,-3609.12,0.00037069,3]
[355825469,1741623279991,-1804.56,0.00037069,3]
[355825470,1741623280013,-902.28,0.00037069,3]
[355825471,1741623280204,-451.14,0.00037069,3]
[355825472,1741623280227,-150.0,0.00037078,2]
[355825473,1741623280249,-457.21,0.00037078,2]
[355825474,1741623280271,-457.21,0.00037078,2]
[355825475,1741623280291,-457.21,0.00037078,2]
[355825476,1741623280312,-457.21,0.00037078,2]
[355825477,1741623280333,-457.21,0.00037078,2]
[355825478,1741623280355,-439.42196885,0.00037078,15]
[355825479,1741623280377,-635.49257474,0.00037078,15]
[355825480,1741623280401,-1303.34712851,0.00037078,2]
[355825481,1741623280427,-553.92252963,0.00037078,2]
[355825482,1741623280453,-395.48361499,0.00037078,15]
[355825483,1741623280477,-500.0,0.00037078,2]
[355825484,1741623280500,-500.0,0.00037078,15]
[355825485,1741623280526,-500.0,0.00037078,15]
[355825486,1741623280552,-553.92252963,0.00037078,2]
[355825487,1741623280577,-500.0,0.00037078,2]
[355825488,1741623280599,-500.0,0.00037078,15]
[355825489,1741623280626,-553.92252963,0.00037078,2]
[355825490,1741623280649,-155.98213326,0.00037078,15]
[355825491,1741623280671,-500.0,0.00037078,15]
[355825492,1741623280696,-500.0,0.00037078,2]
[355825493,1741623280721,-246.47841201,0.00037078,2]
[355825494,1741623305247,-676.71,0.00037068,3]
[355825495,1741623305277,-115.29,0.00037078,2]
[355825496,1741623336213,-154.68128606,0.00037078,2]
[355825497,1741623336244,-192.15411762,0.00037078,2]
[355825498,1741623336270,-553.92252963,0.00037078,2]
[355825499,1741623336295,-500.0,0.00037078,2]
[355825500,1741623336321,-553.92252963,0.00037078,2]
[355825501,1741623336346,-500.0,0.00037078,15]
[355825502,1741623336372,-500.0,0.00037078,2]
[355825503,1741623336400,-553.92252963,0.00037078,2]
[355825504,1741623336424,-500.0,0.00037078,15]
[355825505,1741623336449,-143.39700743,0.00037078,2]
[355825506,1741623437065,500.0,0.00028,10]
[355825507,1741623438573,-500.0,0.0002801,2]
[355825508,1741623438604,-1899.38174084,0.00036978,2]
[355825509,1741623438646,-1896.94,0.00037067,3]
[355825510,1741623438670,-948.47,0.00037067,3]
[355825511,1741623438845,-307.5953782,0.00037077,15]
[355825512,1741623438873,-444.84480232,0.00037077,15]
[355825513,1741623438897,-1034.31455876,0.00037077,2]
[355825514,1741623438921,-500.0,0.00037077,2]
[355825515,1741623438943,-500.0,0.00037077,15]
[355825516,1741623438966,-1034.31455876,0.00037077,2]
[355825517,1741623438989,-500.0,0.00037077,2]
[355825518,1741623439013,-1034.31455876,0.00037077,2]
[355825519,1741623439035,-500.0,0.00037077,15]
[355825520,1741623439057,-500.0,0.00037077,2]
[355825521,1741623439080,-1034.31455876,0.00037077,2]
[355825522,1741623439106,-1034.31455876,0.00037077,2]
[355825523,1741623439131,-500.0,0.00037077,2]
[355825524,1741623439154,-500.0,0.00037077,15]
[355825525,1741623439178,-500.0,0.00037077,2]
[355825526,1741623439200,-500.0,0.00037077,15]
[355825527,1741623439224,-577.63312765,0.00037077,15]
[355825528,1741623439248,-500.0,0.00037077,2]
[355825529,1741623439281,-500.0,0.00037077,2]
[355825530,1741623439314,-1034.31455876,0.00037077,2]
[355825531,1741623439341,-1034.31455876,0.00037077,2]
[355825532,1741623439368,-500.0,0.00037077,2]
[355825533,1741623439393,-1034.31455876,0.00037077,2]
[355825534,1741623439419,-500.0,0.00037077,2]
[355825535,1741623439447,-1034.31455876,0.00037077,2]
[355825536,1741623439472,-500.0,0.00037077,2]
[355825537,1741623439497,-1034.31455876,0.00037077,2]
[355825538,1741623439522,-1034.31455876,0.00037077,2]
[355825539,1741623439548,-500.0,0.00037077,2]
[355825540,1741623439574,-1034.31455876,0.00037077,2]
[355825541,1741623439601,-500.0,0.00037077,2]
[355825542,1741623439627,-1034.31455876,0.00037077,2]
[355825543,1741623439652,-1034.31455876,0.00037077,2]
[355825544,1741623439675,-500.0,0.00037077,2]
[355825545,1741623439698,-500.0,0.00037077,2]
[355825546,1741623439723,-1034.31455876,0.00037077,2]
[355825547,1741623439744,-500.0,0.00037077,2]
[355825548,1741623439767,-1034.31455876,0.00037077,2]
[355825549,1741623439791,-1034.31455876,0.00037077,2]
[355825550,1741623439814,-500.0,0.00037077,2]
[355825551,1741623439837,-1034.31455876,0.00037077,2]
[355825552,1741623439860,-500.0,0.00037077,2]
[355825553,1741623439883,-1034.31455876,0.00037077,2]
[355825554,1741623439907,-1034.31455876,0.00037077,2]
[355825555,1741623439931,-1034.31455876,0.00037077,2]
[355825556,1741623439954,-500.0,0.00037077,2]
[355825557,1741623439977,-1034.31455876,0.00037077,2]
[355825558,1741623440001,-1034.31455876,0.00037077,2]
[355825559,1741623440024,-543.53074947,0.00037077,2]
[355825560,1741623440048,-1034.31455876,0.00037077,2]
[355825561,1741623440074,-500.0,0.00037077,2]
[355825562,1741623440101,-1034.31455876,0.00037077,2]
[355825563,1741623440124,-1034.31455876,0.00037077,2]
[355825564,1741623440150,-1034.31455876,0.00037077,2]
[355825565,1741623440175,-1034.31455876,0.00037077,2]
[355825566,1741623440200,-1034.31455876,0.00037077,2]
[355825567,1741623440225,-1034.31455876,0.00037077,2]
[355825568,1741623440249,-1034.31455876,0.00037077,2]
[355825569,1741623440274,-1034.31455876,0.00037077,2]
[355825570,1741623440297,-1034.31455876,0.00037077,2]
[355825571,1741623440319,-1034.31455876,0.00037077,2]
[355825572,1741623440343,-1034.31455876,0.00037077,2]
[355825573,1741623440365,-1034.31455876,0.00037077,2]
[355825574,1741623440388,-1034.31455876,0.00037077,2]
[355825575,1741623440412,-1034.31455876,0.00037077,2]
[355825576,1741623440436,-1034.31455876,0.00037077,2]
[355825577,1741623440564,-1034.31455876,0.00037077,2]
[355825578,1741623440591,-1034.31455876,0.00037077,2]
[355825579,1741623440615,-1034.31455876,0.00037077,2]
[355825580,1741623440641,-1034.31455876,0.00037077,2]
[355825581,1741623440665,-1034.31455876,0.00037077,2]
[355825582,1741623440689,-1034.31455876,0.00037077,2]
[355825583,1741623440713,-1034.31455876,0.00037077,2]
[355825584,1741623440736,-1034.31455876,0.00037077,2]
[355825585,1741623440759,-1034.31455876,0.00037077,2]
[355825586,1741623440784,-1034.31455876,0.00037077,2]
[355825587,1741623440810,-1034.31455876,0.00037077,2]
[355825588,1741623440836,-1034.31455876,0.00037077,2]
[355825589,1741623440861,-1034.31455876,0.00037077,2]
[355825590,1741623440884,-1034.31455876,0.00037077,2]
[355825591,1741623440908,-1034.31455876,0.00037077,2]
[355825592,1741623440931,-1034.31455876,0.00037077,2]
[355825593,1741623440954,-1034.31455876,0.00037077,2]
[355825594,1741623440986,-1034.31455876,0.00037077,2]
[355825595,1741623441037,-1034.31455876,0.00037077,2]
[355825596,1741623441060,-1034.31455876,0.00037077,2]
[355825597,1741623441083,-1034.31455876,0.00037077,2]
[355825598,1741623441110,-1034.31455876,0.00037077,2]
[355825599,1741623441134,-1034.31455876,0.00037077,2]
[355825600,1741623441158,-1034.31455876,0.00037077,2]
[355825601,1741623441184,-1034.31455876,0.00037077,2]
[355825602,1741623441208,-1005.35375112,0.00037077,2]
[355825603,1741623441230,-1005.35375112,0.00037077,2]
[355825604,1741623441253,-1005.35375112,0.00037077,2]
[355825605,1741623441277,-1005.35375112,0.00037077,2]
[355825606,1741623441300,-1005.35375112,0.00037077,2]
[355825607,1741623441323,-1005.35375112,0.00037077,2]
[355825608,1741623441351,-1005.35375112,0.00037077,2]
[355825609,1741623441375,-1005.35375112,0.00037077,2]
[355825610,1741623441400,-1005.35375112,0.00037077,2]
[355825611,1741623441423,-1005.35375112,0.00037077,2]
[355825612,1741623441447,-1005.35375112,0.00037077,2]
[355825613,1741623441470,-1005.35375112,0.00037077,2]
[355825614,1741623441495,-1005.35375112,0.00037077,2]
[355825615,1741623441518,-1005.35375112,0.00037077,2]
[355825616,1741623441543,-1005.35375112,0.00037077,2]
[355825617,1741623441571,-1005.35375112,0.00037077,2]
[355825618,1741623441601,-1005.35375112,0.00037077,2]
[355825619,1741623441625,-1005.35375112,0.00037077,2]
[355825620,1741623441649,-1005.35375112,0.00037077,2]
[355825621,1741623441674,-1005.35375112,0.00037077,2]
[355825622,1741623441697,-1005.35375112,0.00037077,2]
[355825623,1741623441721,-1005.35375112,0.00037077,2]
[355825624,1741623441745,-1005.35375112,0.00037077,2]
[355825625,1741623441769,-1005.35375112,0.00037077,2]
[355825626,1741623441794,-1005.35375112,0.00037077,2]
[355825627,1741623441817,-189.18,0.00037079,2]
[355825628,1741623441840,-2000.0,0.00037358,2]
[355825629,1741623441862,-2000.0,0.00037524,2]
[355825630,1741623441884,-1779.03383847,0.000379,8]
[355825631,1741623441906,-470.67938019,0.00038011,5]
[355825632,1741623441928,-331.97161883,0.00038011,5]
[355825633,1741623441950,-500.0,0.00038011,5]
[355825634,1741623441971,-501.07054836,0.00038011,5]
[355825635,1741623441994,-500.0,0.00038011,2]
[355825636,1741623442017,-500.0,0.00038011,5]
[355825637,1741623442039,-500.0,0.00038011,5]
[355825638,1741623442061,-500.0,0.00038011,2]
[355825639,1741623442082,-386.29079817,0.00038011,5]
[355825640,1741623442224,-488.03395708,0.00038011,5]
[355825641,1741623442248,-174.93216429,0.000384,2]
[355825642,1741623442271,-3793.88,0.00038437,3]
[355825643,1741623442293,-1896.94,0.00038437,3]
[355825644,1741623442316,-416.66666667,0.00038439,3]
[355825645,1741623442341,-500.0,0.00038473,5]
[355825646,1741623442362,-163.03625918,0.00038473,5]
[355825647,1741623442383,-379.14800463,0.00038473,5]
[355825648,1741623442405,-3793.87,0.0003849,3]
[355825649,1741623442426,-457.21,0.00038499,2]
[355825650,1741623442449,-89829.68542701,0.000385,3]
[355825651,1741623519931,-200.97825,0.00035,5]
[355825652,1741623519953,-160.82038696,0.00038473,5]
[355825653,1741623519976,-474.23,0.0003849,3]
[355825654,1741623519998,-286.40368085,0.00038499,15]
[355825655,1741623520021,-500.0,0.00038499,2]
[355825656,1741623520045,-500.0,0.00038499,2]
[355825657,1741623520068,-500.0,0.00038499,2]
[355825658,1741623520090,-615.94786105,0.00038499,2]
[355825659,1741623520113,-500.0,0.00038499,2]
[355825660,1741623520138,-500.0,0.00038499,2]
[355825661,1741623520163,-500.0,0.00038499,2]
[355825662,1741623520193,-391.33230379,0.00038499,2]
[355825663,1741623520236,-500.0,0.00038499,2]
[355825664,1741623520260,-500.0,0.00038499,2]
[355825665,1741623520481,-500.0,0.00038499,2]
[355825666,1741623520508,-500.0,0.00038499,2]
[355825667,1741623520533,-500.0,0.00038499,2]
[355825668,1741623520560,-500.0,0.00038499,2]
[355825669,1741623520586,-500.0,0.00038499,2]
[355825670,1741623520613,-500.0,0.00038499,2]
[355825671,1741623520643,-500.0,0.00038499,2]
[355825672,1741623520668,-500.0,0.00038499,2]
[355825673,1741623520693,-500.0,0.00038499,2]
[355825674,1741623520732,-500.0,0.00038499,2]
[355825675,1741623520756,-500.0,0.00038499,2]
[355825676,1741623520781,-500.0,0.00038499,2]
[355825677,1741623520805,-500.0,0.00038499,2]
[355825678,1741623520826,-9174.28751735,0.000385,3]
[355825679,1741623581655,-17650.0,0.000385,3]
[355825680,1741623634705,200.0,0.00027,120]
[355825682,1741623759355,5000.0,0.0003,3]
[355825704,1741624174151,-200.0,0.000323,120]
[355825706,1741624183721,1105.1,0.0003,3]
[355825707,1741624196846,166.0,0.0003,7]
[355825748,1741624232928,-198.7545,0.00035,5]
[355825749,1741624232938,-500.0,0.0003589,2]
[355825750,1741624232948,-166.58345827,0.000363,2]
[355825751,1741624232958,-217.3728113,0.0003632,2]
[355825752,1741624232969,-1218.849284,0.000364,2]
[355825753,1741624232979,-381.38842,0.000376,120]
[355825754,1741624232989,-407.92681048,0.000384,111]
[355825755,1741624232999,-1033.79958251,0.000385,3]
[355825756,1741624233009,-3837.37035384,0.00039647,2]
[355825757,1741624233020,-202.73220701,0.00039833,5]
[355825758,1741624233030,-2818.56602123,0.0003988,2]
[355825759,1741624233044,-179.42331514,0.000399,6]
[355825760,1741624233054,-2292.09693514,0.000399,2]
[355825762,1741624233064,-406.25546454,0.00039973,5]
[355825764,1741624233075,-501.15957283,0.00039973,5]
[355825766,1741624233086,-500.0,0.00039973,5]
[355825767,1741624233095,-500.0,0.00039973,5]
[355825768,1741624233106,-506.43616778,0.00039973,5]
[355825769,1741624233116,-500.0,0.00039973,5]
[355825770,1741624233126,-500.4027595,0.00039973,5]
[355825771,1741624233136,-500.0,0.00039973,5]
[355825772,1741624233146,-500.0,0.00039973,5]
[355825773,1741624233156,-156.11189183,0.00039973,5]
[355825774,1741624233167,-500.0,0.00039973,2]
[355825775,1741624233177,-500.0,0.00039973,2]
[355825776,1741624233188,-500.0,0.00039973,5]
[355825777,1741624233198,-389.61,0.0003999,3]
[355825778,1741624233208,-194.81,0.0003999,3]
[355825779,1741624233218,-11869.27,0.0003999,3]
[355825780,1741624233229,-6067.01,0.0003999,3]
[355825781,1741624233239,-3033.5,0.0003999,3]
[355825782,1741624233251,-1516.75,0.0003999,3]
[355825783,1741624233261,-758.38,0.0003999,3]
[355825784,1741624233272,-379.19,0.0003999,3]
[355825785,1741624233282,-189.59,0.0003999,3]
[355825786,1741624233296,-16831.63998196,0.0003999,2]
[355825787,1741624233306,-342.91,0.00039999,2]
[355825788,1741624233316,-129.98545571,0.00039999,2]
[355825789,1741624235568,200.0,0.00027,120]
[355825790,1741624235993,200.0,0.000323,120]
[355825804,1741624238639,-390.69421,0.000376,120]
[355825805,1741624238649,-151.85301825,0.00039973,5]
[355825807,1741624238659,-500.0,0.00039989,2]
[355825809,1741624238669,-500.0,0.00039989,2]
[355825810,1741624238679,-449.03215754,0.00039989,2]
[355825812,1741624238688,-370.57,0.0003999,3]
[355825814,1741624238698,-556.51387871,0.00039998,31]
[355825816,1741624238708,-397.91558396,0.00039998,31]
[355825818,1741624238717,-212.92454429,0.00039999,2]
[355825820,1741624238727,-342.91,0.00039999,2]
[355825822,1741624238736,-342.91,0.00039999,2]
[355825824,1741624238746,-435.51,0.00039999,2]
[355825826,1741624238756,-435.51,0.00039999,2]
[355825829,1741624238767,-435.51,0.00039999,2]
[355825831,1741624238776,-435.51,0.00039999,2]
[355825833,1741624238786,-435.51,0.00039999,2]
[355825847,1741624238923,-435.51,0.00039999,2]
[355825849,1741624238933,-1813.10512384,0.0004,15]
[355825851,1741624238942,-26271.17190386,0.0004,30]
[355825859,1741624240938,-1530.23249841,0.0004,30]
[355825860,1741624240951,-1651068.41752983,0.0004,30]
[355825861,1741624240962,-206.51,0.0004,30]
[355825862,1741624240971,-151.0,0.0004,19]
[355825863,1741624240981,-151.0,0.0004,10]
[355825864,1741624240990,-151.0,0.0004,18]
[355825865,1741624241000,-151.0,0.0004,16]
[355825866,1741624241010,-151.0,0.0004,10]
[355825867,1741624241019,-151.0,0.0004,15]
[355825868,1741624241030,-151.0,0.0004,11]
[355825869,1741624241039,-151.0,0.0004,20]
[355825870,1741624241051,-151.0,0.0004,16]
[355825871,1741624241061,-151.0,0.0004,12]
[355825872,1741624241071,-689.01,0.0004,30]
[355825873,1741624241081,-18189.54,0.0004,30]
[355825874,1741624241091,-154.68128606,0.0004,15]
[355825875,1741624241101,-416.66666667,0.00040578,2]
[355825877,1741624241111,-500.0,0.00040641,2]
[355825879,1741624241121,-151.0,0.000407,20]
[355825880,1741624241131,-24900.0,0.00040817,2]
[355825882,1741624241141,-166.58345827,0.00040896,2]
[355825883,1741624241152,-162.77633911,0.00041096,2]
[355825884,1741624241162,-1239.83,0.000411,30]
[355825885,1741624241172,-500.0,0.00041211,2]
[355825886,1741624241183,-389.62,0.0004136,3]
[355825887,1741624241194,-23738.54,0.0004136,3]
[355825888,1741624241205,-12134.02,0.0004136,3]
[355825889,1741624241216,-6067.0,0.0004136,3]
[355825890,1741624241228,-3033.5,0.0004136,3]
[355825892,1741624241239,-1516.76,0.0004136,3]
[355825893,1741624241249,-758.38,0.0004136,3]
[355825895,1741624241259,-379.18,0.0004136,3]
[355825897,1741624241270,-741.14,0.0004136,3]
[355825899,1741624241281,-1218.849284,0.000414,2]
[355825900,1741624241292,-407.92681045,0.00041616,120]
[355825901,1741624241308,-151.0,0.000418,20]
[355825902,1741624241317,-176.466,0.00042134,63]
[355825903,1741624241327,-206.51,0.000422,30]
[355825904,1741624241336,-689.01,0.000422,30]
[355825905,1741624241346,-18189.54,0.000422,30]
[355825906,1741624241357,-1813.10512384,0.000424,15]
[355825907,1741624241368,-151.0,0.000429,16]
[355825908,1741624241379,-33985.05205124,0.00043,7]
[355825909,1741624241390,-229.42360425,0.00043562,120]
[355825910,1741624241401,-200.0,0.0004375,2]
[355825911,1741624241413,-510.37508283,0.00044,60]
[355825913,1741624241423,-252.74949522,0.00044,30]
[355825914,1741624241434,-2000.0,0.00044045,4]
[355825915,1741624241445,-151.0,0.000441,20]
[355825916,1741624241456,-2292.09693514,0.000444,2]
[355825917,1741624241466,-1964.19721749,0.000448,19]
[355825918,1741624241477,-407.92681045,0.00044831,120]
[355825919,1741624241488,-206.51,0.000449,30]
[355825920,1741624241498,-689.01,0.000449,30]
[355825921,1741624241508,-18189.54,0.000449,30]
[355825922,1741624241519,-175.57,0.00044999,30]
[355825923,1741624241530,-151.0,0.00045,120]
[355825924,1741624241542,-151.0,0.00045,120]
[355825925,1741624241560,-377.74987718,0.00045,30]
[355825926,1741624241571,-151.0,0.000452,27]
[355825927,1741624241584,-1065.05790842,0.00045452,10]
[355825928,1741624241595,-1000.0,0.00045452,10]
[355825929,1741624241605,-1000.0,0.00045452,10]
[355825930,1741624241617,-1000.0,0.00045452,10]
[355825931,1741624241628,-1000.0,0.00045452,10]
[355825932,1741624241638,-379.45656268,0.00045452,2]
[355825933,1741624241761,-1000.0,0.00045452,2]
[355825934,1741624241773,-500.0,0.00045452,10]
[355825935,1741624241783,-27239.50851487,0.000455,30]
[355825936,1741624241793,-174.93216427,0.0004579,2]
[355825937,1741624241809,-3000.0,0.0004585,120]
[355825938,1741624241819,-319.24796946,0.00045873,10]
[355825939,1741624241828,-500.0,0.00045873,10]
[355825940,1741624241839,-500.0,0.00045873,10]
[355825941,1741624241850,-500.0,0.00045873,10]
[355825942,1741624241860,-499.35639846,0.00045873,10]
[355825943,1741624241871,-500.0,0.00045873,10]
[355825944,1741624241882,-160.7614657,0.00045873,10]
[355825945,1741624241891,-500.0,0.00045873,10]
[355825946,1741624241902,-500.0,0.00045873,10]
[355825947,1741624241912,-333.48446206,0.00045873,10]
[355825948,1741624241922,-500.0,0.00045873,10]
[355825949,1741624241932,-502.118915,0.00045873,10]
[355825950,1741624241941,-500.0,0.00045873,10]
[355825951,1741624241952,-502.16338973,0.00045873,10]
[355825952,1741624241962,-500.0,0.00045873,10]
[355825953,1741624241972,-500.0,0.00045873,10]
[355825954,1741624241982,-500.0,0.00045873,10]
[355825955,1741624241991,-500.0,0.00045873,10]
[355825956,1741624242001,-199.61554703,0.00045873,10]
[355825957,1741624242011,-500.0,0.00045873,10]
[355825958,1741624242021,-500.0,0.00045873,10]
[355825959,1741624242031,-500.0,0.00045873,10]
[355825960,1741624242041,-500.0,0.00045873,10]
[355825961,1741624242054,-500.0,0.00045873,10]
[355825962,1741624242065,-500.0,0.00045873,10]
[355825963,1741624242074,-500.0,0.00045873,10]
[355825964,1741624242084,-500.0,0.00045873,7]
[355825965,1741624242094,-356.47930468,0.00045873,10]
[355825966,1741624242104,-500.0,0.00045873,10]
[355825967,1741624242114,-504.87518026,0.00045873,10]
[355825968,1741624242124,-500.0,0.00045873,10]